lending/lending_fUSD_20240522
["ID","MTS","AMOUNT","RATE_DAILY","PERIOD"]
[327726507,1716385841193,-151.25,0.0002499,2]
[327726508,1716385841203,-14640.63112175,0.00025,2]
[327726509,1716385841216,-14630.64000001,0.00025,2]
[327726510,1716385841228,-8473.24999999,0.00025,2]
[327726511,1716385841241,-9412.51630002,0.00025,2]
[327726516,1716385841592,-657.62251055,0.00023714,2]
[327726517,1716385842181,-2755.3268,0.00023714,2]
[327726518,1716385842195,-982.54762016,0.00023714,2]
[327726519,1716385842208,-539.06283141,0.00023714,2]
[327726520,1716385842235,-12572.84059662,0.00023714,2]
[327726521,1716385842246,-114721.52420716,0.00025,2]
[327726522,1716385842258,-368.20071861,0.00025,2]
[327726523,1716385842270,-488.73793469,0.00025,2]
[327726524,1716385842282,-15411.42292426,0.00025,2]
[327726525,1716385842294,-10044.09999998,0.00025,2]
[327726526,1716385842362,-16143.35957632,0.00025,2]
[327726529,1716385843832,-1124.10700814,0.00025,2]
[327726530,1716385843880,-257358.47911905,0.00025,2]
[327726559,1716385848992,-2343.36758848,0.00017259,2]
[327726560,1716385849295,-470.61257939,0.00017259,2]
[327726561,1716385849304,-267.82545389,0.00017259,2]
[327726562,1716385849313,-3580.33426428,0.00020831,2]
[327726563,1716385849323,-16291.96370357,0.00025,2]
[327726564,1716385849335,-2791.38162,0.00025,2]
[327726565,1716385849347,-3754.69677219,0.00025,2]
[327726571,1716386197744,-155.0,0.0001397,2]
[327726572,1716386197770,-5233.82703657,0.00013971,2]
[327726573,1716386197793,-294.13,0.00013973,2]
[327726614,1716387033684,-155.0,0.0001719,2]
[327726615,1716387033694,-969.84209196,0.00017191,2]
[327726616,1716387033704,-180.0,0.000172,2]
[327726617,1716387033713,-5301.83719331,0.00017256,2]
[327726618,1716387033723,-150.0,0.00017533,2]
[327726619,1716387033733,-410.39631753,0.00019,2]
[327726621,1716387033742,-210.0,0.00019286,2]
[327726622,1716387033752,-499.99,0.00019451,2]
[327726623,1716387033761,-2887.58,0.00019452,2]
[327726624,1716387033772,-944.64,0.00019452,2]
[327726625,1716387033782,-224.99,0.00019452,3]
[327726626,1716387033792,-223.49256434,0.00019635,2]
[327726627,1716387033802,-313.23815089,0.00019635,2]
[327726628,1716387033812,-797.65,0.00019635,2]
[327726629,1716387033822,-320.09,0.00020333,2]
[327726630,1716387033832,-294.13,0.00020447,2]
[327726631,1716387033842,-184.0,0.00020968,2]
[327726632,1716387033851,-150.0,0.00020968,2]
[327726633,1716387033860,-974.0,0.00020968,2]
[327726634,1716387033870,-1643.0,0.00020968,2]
[327726635,1716387033880,-1263.0,0.00020968,2]
[327726636,1716387033889,-613.0,0.00020968,2]
[327726637,1716387033899,-1225.0,0.00020968,2]
[327726638,1716387033908,-2199.0,0.00020968,2]
[327726639,1716387033918,-1649.0,0.00020968,2]
[327726640,1716387033927,-215.0,0.00020968,2]
[327726641,1716387033938,-264.82133589,0.00021005,2]
[327726642,1716387033948,-500.0,0.000219,2]
[327726643,1716387033957,-250.0,0.00022005,2]
[327726644,1716387033967,-150.0,0.00022044,2]
[327726645,1716387033976,-166.21,0.00022048,2]
[327726646,1716387033986,-1913.89,0.00022139,2]
[327726647,1716387033996,-563.16,0.00022143,2]
[327726648,1716387034005,-166.66666665,0.0002219,2]
[327726649,1716387034014,-250.0,0.0002219,2]
[327726650,1716387034025,-734.9,0.00022191,2]
[327726651,1716387034037,-168.99,0.00022223,2]
[327726652,1716387034047,-2056.88,0.00022229,2]
[327726653,1716387034056,-860.59,0.00022243,2]
[327726654,1716387034067,-23900.0,0.00022248,2]
[327726655,1716387034077,-1919.55,0.00022257,2]
[327726656,1716387034086,-1746.68,0.0002226,2]
[327726657,1716387034095,-200.0,0.00022261,2]
[327726658,1716387034105,-156.83,0.0002229,2]
[327726659,1716387034116,-1349.96,0.00022293,2]
[327726660,1716387034127,-4031.1,0.00022357,2]
[327726661,1716387034136,-152.0063385,0.0002238,2]
[327726662,1716387034146,-172.96207992,0.0002239,2]
[327726663,1716387034156,-1244.75977175,0.0002239,2]
[327726664,1716387034165,-883.0724361,0.0002239,2]
[327726665,1716387034175,-1000.0,0.00022391,2]
[327726666,1716387034184,-7007.45,0.00022392,2]
[327726667,1716387034193,-155.9957407,0.00022417,2]
[327726668,1716387034202,-152.0063385,0.00022436,2]
[327726669,1716387034212,-155.9957407,0.0002248,2]
[327726670,1716387034222,-152.0063385,0.00022484,2]
[327726671,1716387034231,-156.01091838,0.0002249,2]
[327726672,1716387034241,-152.0063385,0.00022505,2]
[327726673,1716387034251,-165.21,0.0002253,2]
[327726674,1716387034260,-320.09,0.00022596,2]
[327726675,1716387034270,-158.17244212,0.00022603,2]
[327726676,1716387034280,-156.83,0.00022677,2]
[327726677,1716387034290,-200.0,0.00022706,2]
[327726678,1716387034300,-154.49054119,0.00022725,2]
[327726679,1716387034310,-152.0063385,0.00022811,2]
[327726680,1716387034320,-156.83,0.00023064,2]
[327726681,1716387034330,-160.07720588,0.00023068,2]
[327726682,1716387034340,-154.94429311,0.00023147,2]
[327726683,1716387034349,-155.9957407,0.00023214,2]
[327726684,1716387034359,-155.9957407,0.00023242,2]
[327726685,1716387034369,-155.86954962,0.00023307,2]
[327726686,1716387034380,-154.94429311,0.00023338,2]
[327726687,1716387034390,-2004.82313321,0.000234,2]
[327726688,1716387034399,-152.0063385,0.00023441,2]
[327726689,1716387034408,-156.83,0.00023451,2]
[327726690,1716387034418,-154.94429311,0.00023493,2]
[327726691,1716387034428,-152.0063385,0.00023595,2]
[327726692,1716387034437,-154.49054119,0.00023673,2]
[327726693,1716387034447,-166.66666666,0.00023688,2]
[327726694,1716387034457,-155.86954962,0.00023697,2]
[327726695,1716387034466,-154.94429311,0.00023751,2]
[327726696,1716387034476,-384.582013,0.00023836,2]
[327726697,1716387034486,-154.94429311,0.00023882,2]
[327726698,1716387034495,-216.174591,0.00023928,2]
[327726699,1716387034505,-168.209899,0.00023928,2]
[327726700,1716387034514,-189.064567,0.00023928,2]
[327726701,1716387034523,-432.349181,0.00023928,2]
[327726702,1716387034533,-269.135839,0.00023928,2]
[327726703,1716387034543,-151.251653,0.00023928,2]
[327726704,1716387034553,-216.174591,0.00023928,2]
[327726705,1716387034564,-183.896948,0.00023928,2]
[327726706,1716387034573,-168.209899,0.00023928,2]
[327726707,1716387034582,-186.015969,0.00023928,2]
[327726708,1716387034592,-235.507659,0.00023928,2]
[327726709,1716387034601,-189.064569,0.00023928,2]
[327726710,1716387034611,-151.57874297,0.00023963,2]
[327726711,1716387034620,-155.46791382,0.00023963,2]
[327726712,1716387034631,-163.0,0.00023968,2]
[327726713,1716387034640,-166.66666667,0.00024116,2]
[327726714,1716387034650,-154.94429311,0.00024137,2]
[327726715,1716387034659,-216.174591,0.00024227,2]
[327726716,1716387034669,-432.349181,0.00024227,2]
[327726717,1716387034678,-269.135839,0.00024227,2]
[327726718,1716387034688,-151.251653,0.00024227,2]
[327726719,1716387034698,-216.174591,0.00024227,2]
[327726720,1716387034707,-152.0063385,0.00024272,2]
[327726721,1716387034717,-257.90667842,0.0002429,7]
[327726722,1716387034727,-168.209899,0.00024327,2]
[327726723,1716387034736,-168.209899,0.00024327,2]
[327726724,1716387034746,-154.49054119,0.00024358,2]
[327726725,1716387034756,-152.0063385,0.00024438,2]
[327726726,1716387034766,-171.06,0.00024443,2]
[327726727,1716387034776,-152.0063385,0.00024445,2]
[327726728,1716387034787,-180.0,0.0002447,2]
[327726729,1716387034901,-800.0,0.00024493,2]
[327726730,1716387034911,-216.174591,0.00024526,2]
[327726731,1716387034921,-432.349181,0.00024526,2]
[327726732,1716387034931,-269.135839,0.00024526,2]
[327726733,1716387034941,-151.251653,0.00024526,2]
[327726734,1716387034950,-216.174591,0.00024526,2]
[327726735,1716387034960,-384.582013,0.00024658,2]
[327726736,1716387034969,-250.0,0.00024658,2]
[327726737,1716387034980,-1566.03064875,0.00024677,2]
[327726738,1716387034989,-708.32652841,0.00024694,2]
[327726739,1716387034999,-657.70960259,0.00024694,2]
[327726740,1716387035008,-1452.96436138,0.00024694,2]
[327726741,1716387035018,-433.05694752,0.00024695,2]
[327726742,1716387035032,-5079.69634499,0.00024696,2]
[327726743,1716387035042,-1000.0,0.000247,9]
[327726744,1716387035051,-168.209899,0.00024725,2]
[327726745,1716387035060,-168.209899,0.00024725,2]
[327726746,1716387035071,-155.86954962,0.00024755,2]
[327726747,1716387035081,-155.86954962,0.00024772,2]
[327726748,1716387035090,-659.5783,0.000248,2]
[327726749,1716387035100,-2000.0,0.000248,9]
[327726750,1716387035112,-216.174591,0.00024825,2]
[327726751,1716387035121,-432.349181,0.00024825,2]
[327726752,1716387035135,-269.135839,0.00024825,2]
[327726753,1716387035145,-151.251653,0.00024825,2]
[327726754,1716387035154,-216.174591,0.00024825,2]
[327726755,1716387035164,-320.09,0.0002486,2]
[327726756,1716387035173,-2186.116539,0.00024889,2]
[327726757,1716387035183,-1000.0,0.000249,2]
[327726758,1716387035192,-6571.55526759,0.000249,2]
[327726759,1716387035201,-69255.9328,0.000249,2]
[327726760,1716387035210,-80097.7278,0.000249,2]
[327726761,1716387035219,-176.59051275,0.000249,2]
[327726762,1716387035228,-185.11585315,0.000249,2]
[327726763,1716387035238,-212.65714406,0.000249,2]
[327726764,1716387035247,-7500.0,0.000249,2]
[327726765,1716387035256,-3000.0,0.000249,9]
[327726766,1716387035266,-152.0063385,0.00024902,2]
[327726767,1716387035275,-152.0063385,0.00024957,2]
[327726768,1716387035284,-155.86954962,0.00024978,2]
[327726769,1716387035294,-168.0,0.0002499,15]
[327726770,1716387035303,-165.5321939,0.0002499,2]
[327726771,1716387035312,-151.26,0.0002499,2]
[327726772,1716387035322,-1919.55,0.00024996,2]
[327726773,1716387035332,-2014.91166142,0.00024997,2]
[327726774,1716387035342,-1430.54396451,0.00024997,2]
[327726775,1716387035351,-244.28954937,0.00024998,2]
[327726776,1716387035361,-155.0,0.00024998,2]
[327726777,1716387035370,-2310.46693299,0.00024998,2]
[327726778,1716387035385,-1217.53250122,0.00024998,2]
[327726779,1716387035395,-3091.08716644,0.00024998,2]
[327726780,1716387035404,-155.0,0.00024998,2]
[327726781,1716387035413,-155.0,0.00024998,2]
[327726782,1716387035422,-155.68524744,0.00024998,2]
[327726783,1716387035432,-2221.82871026,0.00024998,7]
[327726784,1716387035441,-757.44991753,0.00024998,2]
[327726785,1716387035450,-198.77542269,0.00024998,2]
[327726786,1716387035459,-2723.89822655,0.00024998,2]
[327726787,1716387035468,-204.82516016,0.00024998,2]
[327726788,1716387035477,-324.29832917,0.00024999,2]
[327726789,1716387035486,-364.27737293,0.00024999,2]
[327726790,1716387035495,-13022.47696897,0.00024999,2]
[327726791,1716387035505,-225544.89134829,0.00025,2]
[327726792,1716387035519,-697.233732,0.00025,2]
[327726793,1716387035550,-4000.0,0.00025,2]
[327726794,1716387035561,-614.03856886,0.00025,2]
[327726795,1716387035573,-1231730.00528527,0.00025,2]
[327726797,1716387037980,-192.66,0.0002499,3]
[327726798,1716387037990,-3231.52685739,0.00025,2]
[327726799,1716387038002,-70970.66206303,0.00025,2]
[327726800,1716387038014,-4869.49999999,0.00025,2]
[327726801,1716387038027,-442.3265282,0.00025,2]
[327726802,1716387040281,-1141.88427471,0.00025,2]
[327726803,1716387040293,-449.0950004,0.00025,2]
[327726804,1716387040304,-1844.0,0.00025,2]
[327726805,1716387040315,-358.3,0.00025,2]
[327726807,1716387040754,-5368.4908263,0.00025,2]
[327726818,1716387043264,-500.0,0.00019451,2]
[327726819,1716387043285,-103.82,0.00019451,2]
[327726820,1716387043300,-748.08336111,0.00025,2]
[327726821,1716387043319,-664.58842223,0.00025,2]
[327726822,1716387043336,-5240.08156891,0.00025,2]
[327726823,1716387043355,-462.9985157,0.00025,2]
[327726824,1716387043373,-1494.91356086,0.00025,2]
[327726825,1716387043393,-94521.20955347,0.00025,2]
[327726826,1716387043408,-224.2998362,0.00025,2]
[327726827,1716387043424,-248.97029145,0.00025,2]
[327726828,1716387043439,-30000.0,0.00025,2]
[327726829,1716387043454,-1043.83643081,0.00025,2]
[327726830,1716387043470,-37481.60438299,0.00025,2]
[327726831,1716387043486,-1039.40241281,0.00025,2]
[327726832,1716387043501,-445.41817332,0.00025,2]
[327726833,1716387043516,-257.11879413,0.00025,2]
[327726834,1716387043532,-2000.0,0.00025,2]
[327726835,1716387043547,-200.0,0.00025,2]
[327726836,1716387043562,-2000.0,0.00025,2]
[327726837,1716387043578,-200.0,0.00025,2]
[327726838,1716387043594,-2000.0,0.00025,2]
[327726839,1716387043611,-200.0,0.00025,2]
[327726840,1716387043623,-577.29224,0.00025,2]
[327726841,1716387043632,-1599.21183069,0.00025,2]
[327726843,1716387043643,-154.49054119,0.00025009,2]
[327726844,1716387043652,-2312.0,0.00025014,2]
[327726845,1716387043661,-200.0,0.00025044,2]
[327726846,1716387043857,-183.896947,0.00025124,2]
[327726847,1716387043866,-186.015969,0.00025124,2]
[327726848,1716387043875,-189.064567,0.00025124,2]
[327726849,1716387043886,-189.064569,0.00025124,2]
[327726850,1716387043895,-1080.872954,0.00025124,2]
[327726851,1716387043904,-672.839597,0.00025124,2]
[327726852,1716387043913,-378.129134,0.00025124,2]
[327726853,1716387043922,-216.174591,0.00025124,2]
[327726854,1716387043931,-168.209899,0.00025124,2]
[327726855,1716387043941,-432.349181,0.00025124,2]
[327726857,1716387043950,-269.135839,0.00025124,2]
[327726858,1716387043959,-151.251653,0.00025124,2]
[327726859,1716387043969,-216.174591,0.00025124,2]
[327726861,1716387043978,-168.209899,0.00025124,2]
[327726862,1716387043988,-270.37885125,0.00025143,2]
[327726864,1716387043998,-154.49054119,0.00025157,2]
[327726865,1716387044007,-151.8895225,0.00025168,2]
[327726866,1716387044017,-2000.0,0.0002525,2]
[327726867,1716387044028,-200.0,0.0002525,2]
[327726868,1716387044039,-2000.0,0.0002525,2]
[327726869,1716387044048,-200.0,0.0002525,2]
[327726870,1716387044058,-200.0,0.0002525,2]
[327726871,1716387044066,-155.86954962,0.00025282,2]
[327726872,1716387044076,-152.98488687,0.00025287,2]
[327726873,1716387044085,-151.57874298,0.00025406,2]
[327726874,1716387044094,-384.582013,0.00025479,2]
[327726875,1716387044103,-2000.0,0.00025503,2]
[327726876,1716387044117,-200.0,0.00025503,2]
[327726877,1716387044128,-2000.0,0.00025503,2]
[327726878,1716387044141,-200.0,0.00025503,2]
[327726879,1716387044150,-200.0,0.00025503,2]
[327726880,1716387044159,-155.86954962,0.00025509,2]
[327726881,1716387044168,-158.17244213,0.00025527,2]
[327726882,1716387044177,-200.0,0.00025544,2]
[327726883,1716387044187,-154.94429311,0.00025604,2]
[327726884,1716387044197,-155.86954962,0.00025745,2]
[327726885,1716387044206,-2000.0,0.00025758,2]
[327726886,1716387044217,-200.0,0.00025758,2]
[327726887,1716387044227,-2000.0,0.00025758,2]
[327726888,1716387044238,-200.0,0.00025758,2]
[327726889,1716387044247,-200.0,0.00025758,2]
[327726890,1716387044257,-155.86954962,0.00025794,2]
[327726891,1716387044267,-6571.55526755,0.00025855,2]
[327726892,1716387044277,-155.0,0.00025864,2]
[327726893,1716387044287,-2186.11653894,0.0002596,2]
[327726894,1716387044297,-2000.0,0.00026015,2]
[327726895,1716387044307,-152.0063385,0.00026026,2]
[327726896,1716387044317,-500.0,0.00026041,2]
[327726897,1716387044326,-500.0,0.00026041,2]
[327726898,1716387044336,-500.0,0.00026041,2]
[327726899,1716387044345,-500.0,0.00026041,2]
[327726900,1716387044355,-500.0,0.00026041,2]
[327726901,1716387044365,-500.0,0.00026041,2]
[327726902,1716387044375,-500.0,0.00026041,2]
[327726903,1716387044387,-500.0,0.00026041,2]
[327726904,1716387044396,-500.0,0.00026041,2]
[327726905,1716387044406,-500.0,0.00026041,2]
[327726906,1716387044416,-500.0,0.00026041,2]
[327726907,1716387044426,-500.0,0.00026041,2]
[327726908,1716387044435,-500.0,0.00026041,2]
[327726909,1716387044446,-500.0,0.00026041,2]
[327726910,1716387044456,-500.0,0.00026041,2]
[327726911,1716387044467,-500.0,0.00026041,2]
[327726912,1716387044477,-500.0,0.00026041,2]
[327726913,1716387044486,-500.0,0.00026041,2]
[327726914,1716387044497,-500.0,0.00026041,2]
[327726915,1716387044507,-500.0,0.00026041,2]
[327726916,1716387044517,-500.0,0.00026041,2]
[327726917,1716387044527,-155.9957407,0.0002607,2]
[327726918,1716387044537,-154.94429311,0.00026121,2]
[327726919,1716387044548,-155.9957407,0.0002615,2]
[327726920,1716387044558,-156.13,0.00026274,2]
[327726921,1716387044568,-384.582013,0.00026301,2]
[327726922,1716387044578,-151.8895225,0.00026329,2]
[327726923,1716387044588,-385.32,0.0002636,3]
[327726924,1716387044598,-152.0063385,0.00026423,2]
[327726925,1716387044608,-151.8895225,0.00026429,2]
[327726926,1716387044621,-160.0772059,0.00026525,2]
[327726927,1716387044631,-154.94429311,0.00026556,2]
[327726928,1716387044643,-152.98488687,0.00026703,2]
[327726929,1716387044652,-151.8895225,0.00026722,2]
[327726930,1716387044662,-6571.55526755,0.00026809,2]
[327726931,1716387044672,-150.0,0.00026899,2]
[327726932,1716387044682,-294.13,0.00026921,2]
[327726933,1716387044692,-163.0,0.00026968,2]
[327726934,1716387044702,-150.0,0.00026985,2]
[327726935,1716387044712,-159.3699911,0.00026988,2]
[327726936,1716387044722,-201.38793724,0.00026998,2]
[327726937,1716387044732,-155.0,0.00027,4]
[327726938,1716387044742,-183950.09236933,0.00027,2]
[327726939,1716387044752,-150.0,0.00027016,2]
[327726940,1716387044762,-152.0063385,0.00027018,2]
[327726941,1716387044773,-154.94429311,0.00027035,2]
[327726942,1716387044783,-156.9120435,0.00027054,2]
[327726943,1716387044793,-150.0,0.00027069,2]
[327726944,1716387044804,-2186.11653894,0.0002712,2]
[327726945,1716387044815,-384.582013,0.00027123,2]
[327726946,1716387044826,-320.09,0.00027124,2]
[327726947,1716387044836,-150.0,0.00027136,2]
[327726948,1716387044846,-150.0,0.0002717,2]
[327726949,1716387044856,-1782.0,0.000272,2]
[327726950,1716387044866,-150.0,0.00027227,2]
[327726951,1716387044876,-150.0,0.0002734,2]
[327726952,1716387044886,-1575.91,0.00027397,5]
[327726953,1716387044897,-1575.91,0.00027397,5]
[327726954,1716387044907,-1575.91,0.00027397,5]
[327726955,1716387044917,-1575.91,0.00027397,5]
[327726956,1716387044928,-1575.91,0.00027397,5]
[327726957,1716387044938,-1575.91,0.00027397,5]
[327726958,1716387044948,-1575.91,0.00027397,5]
[327726959,1716387044959,-1575.91,0.00027397,5]
[327726960,1716387044969,-1575.91,0.00027397,5]
[327726961,1716387044980,-1575.91,0.00027397,5]
[327726962,1716387044991,-1575.91,0.00027397,5]
[327726963,1716387045002,-1575.91,0.00027397,5]
[327726964,1716387045012,-1575.91,0.00027397,5]
[327726965,1716387045023,-1575.91,0.00027397,5]
[327726966,1716387045037,-1575.91,0.00027397,5]
[327726967,1716387045048,-1575.91,0.00027397,5]
[327726968,1716387045058,-1575.91,0.00027397,5]
[327726969,1716387045068,-1575.91,0.00027397,5]
[327726970,1716387045078,-1575.91,0.00027397,5]
[327726971,1716387045087,-1575.91,0.00027397,5]
[327726972,1716387045097,-1575.91,0.00027397,5]
[327726973,1716387045106,-1575.91,0.00027397,5]
[327726974,1716387045117,-1575.91,0.00027397,5]
[327726975,1716387045127,-1575.97270182,0.00027397,5]
[327726976,1716387045137,-402.59,0.000274,2]
[327726977,1716387045146,-402.59,0.000274,2]
[327726978,1716387045155,-402.59,0.000274,2]
[327726979,1716387045165,-402.59,0.000274,2]
[327726980,1716387045174,-402.59,0.000274,2]
[327726981,1716387045185,-402.59,0.000274,2]
[327726982,1716387045194,-402.59,0.000274,2]
[327726983,1716387045204,-402.59,0.000274,2]
[327726984,1716387045214,-402.59,0.000274,2]
[327726985,1716387045224,-402.59,0.000274,2]
[327726986,1716387045234,-150.0,0.00027419,2]
[327726987,1716387045244,-150.0,0.00027485,2]
[327726988,1716387045254,-150.0,0.00027512,2]
[327726989,1716387045263,-166.73621259,0.00027571,2]
[327726990,1716387045273,-159.3699911,0.0002767,2]
[327726991,1716387045283,-150.0,0.00027733,2]
[327726992,1716387045293,-1919.55,0.00027736,2]
[327726993,1716387045303,-6571.55526755,0.00027764,2]
[327726994,1716387045312,-154.94429311,0.00027777,2]
[327726995,1716387045324,-154.94429311,0.00027807,2]
[327726996,1716387045334,-200.0,0.00027827,2]
[327726997,1716387045343,-155.86954962,0.00027851,2]
[327726998,1716387045353,-150.0,0.00027885,2]
[327726999,1716387045363,-166.29644053,0.00027899,2]
[327727000,1716387045372,-154.94429311,0.00027913,2]
[327727001,1716387045382,-384.582013,0.00027945,14]
[327727002,1716387045394,-150.0,0.00027997,2]
[327727003,1716387045404,-7853.61170253,0.00028,2]
[327727004,1716387045414,-150.0,0.00028005,2]
[327727005,1716387045423,-150.0,0.00028079,2]
[327727006,1716387045433,-152.0063385,0.00028082,2]
[327727007,1716387045443,-154.94429311,0.00028107,2]
[327727008,1716387045453,-150.0,0.00028122,2]
[327727009,1716387045463,-155.86954962,0.00028195,2]
[327727010,1716387045473,-150.0,0.00028204,2]
[327727011,1716387045483,-252.0,0.00028219,5]
[327727012,1716387045492,-154.21988295,0.00028223,2]
[327727013,1716387045502,-150.0,0.00028264,2]
[327727014,1716387045512,-154.94429311,0.00028268,2]
[327727015,1716387045522,-154.94429311,0.00028271,2]
[327727016,1716387045533,-150.0,0.00028273,2]
[327727017,1716387045542,-2186.11653894,0.00028281,2]
[327727018,1716387045552,-200.0,0.00028382,2]
[327727019,1716387045561,-150.0,0.0002839,2]
[327727020,1716387045571,-300.0,0.00028428,2]
[327727021,1716387045581,-150.0,0.00028443,2]
[327727022,1716387045590,-150.0,0.00028497,2]
[327727023,1716387045600,-150.0,0.00028498,2]
[327727024,1716387045609,-150.0,0.00028507,2]
[327727025,1716387045619,-152.0063385,0.00028516,2]
[327727026,1716387045629,-152.0063385,0.00028525,2]
[327727027,1716387045641,-152.0063385,0.00028561,2]
[327727028,1716387045650,-150.0,0.0002858,2]
[327727029,1716387045660,-150.0,0.00028581,2]
[327727030,1716387045670,-150.0,0.00028583,2]
[327727031,1716387045679,-150.0,0.00028598,2]
[327727032,1716387045689,-150.0,0.00028599,2]
[327727033,1716387045698,-19623.63845774,0.000286,2]
[327727034,1716387045708,-150.0,0.00028606,2]
[327727035,1716387045718,-150.0,0.0002861,2]
[327727036,1716387045727,-1000.0,0.00028612,2]
[327727037,1716387045737,-150.0,0.00028614,2]
[327727038,1716387045747,-152.0063385,0.0002862,2]
[327727039,1716387045756,-150.0,0.00028654,2]
[327727040,1716387045766,-150.0,0.00028657,2]
[327727041,1716387045775,-155.86954962,0.00028687,2]
[327727042,1716387045785,-150.0,0.0002869,2]
[327727043,1716387045794,-3834.59090055,0.00028718,2]
[327727046,1716387046320,-404.75808895,0.00028718,2]
[327727047,1716387046333,-2332.20627805,0.00028718,2]
[327727048,1716387046343,-10000.0,0.00028722,2]
[327727049,1716387046353,-150.0,0.00028728,2]
[327727050,1716387046362,-150.0,0.00028758,2]
[327727051,1716387046372,-384.582013,0.00028767,14]
[327727052,1716387046383,-150.0,0.00028795,2]
[327727053,1716387046393,-530.0,0.000288,13]
[327727054,1716387046403,-150.0,0.000288,2]
[327727055,1716387046413,-160.36674768,0.00028807,2]
[327727056,1716387046423,-150.0,0.00028825,2]
[327727057,1716387046433,-150.0,0.00028849,2]
[327727058,1716387046442,-200.0,0.00028909,15]
[327727059,1716387046452,-150.0,0.00028912,2]
[327727060,1716387046462,-1500.0,0.00028925,2]
[327727061,1716387046472,-152.0063385,0.0002894,2]
[327727062,1716387046483,-150.0,0.00028961,2]
[327727063,1716387046492,-150.0,0.00028969,2]
[327727064,1716387046502,-150.0,0.00028991,2]
[327727065,1716387046512,-821.06102544,0.00029,8]
[327727066,1716387046522,-150.0,0.00029024,2]
[327727067,1716387046532,-150.0,0.00029054,2]
[327727068,1716387046541,-155.9957407,0.00029094,2]
[327727070,1716387046550,-150.0,0.00029106,2]
[327727072,1716387046560,-279.1586375,0.00029109,2]
[327727074,1716387046570,-150.0,0.0002911,2]
[327727076,1716387046579,-1500.0,0.00029113,2]
[327727078,1716387046589,-155.46791382,0.00029126,2]
[327727080,1716387046599,-155.9957407,0.00029139,2]
[327727082,1716387046609,-150.0,0.00029153,2]
[327727084,1716387046619,-150.0,0.00029173,2]
[327727086,1716387046629,-141.63956461,0.00029223,2]
[327727087,1716387046642,-8.36043539,0.00029223,2]
[327727088,1716387046652,-155.86954962,0.00029234,2]
[327727089,1716387046662,-122.91685791,0.00029238,2]
[327727090,1716387046674,-27.08314209,0.00029238,2]
[327727091,1716387046684,-154.94429311,0.00029252,2]
[327727092,1716387046694,-150.0,0.00029274,2]
[327727093,1716387046704,-90.11994382,0.00029328,2]
[327727094,1716387046716,-59.88005618,0.00029328,2]
[327727095,1716387046726,-150.0,0.00029336,2]
[327727097,1716387046736,-150.0,0.00029339,2]
[327727099,1716387046745,-150.0,0.00029359,2]
[327727101,1716387046756,-150.0,0.00029384,2]
[327727103,1716387046766,-320.09,0.00029388,2]
[327727105,1716387046776,-150.0,0.00029393,2]
[327727107,1716387046786,-150.0,0.00029395,2]
[327727109,1716387046796,-715.36994382,0.000294,3]
[327727120,1716387046901,-1792.37380818,0.000294,3]
[327727121,1716387046913,-500.0,0.0002941,2]
[327727122,1716387046923,-500.0,0.0002941,2]
[327727123,1716387046933,-500.0,0.0002941,2]
[327727124,1716387046942,-316.35661167,0.0002941,2]
[327727125,1716387046954,-183.64338833,0.0002941,2]
[327727126,1716387046964,-500.0,0.0002941,2]
[327727127,1716387046973,-500.0,0.0002941,2]
[327727128,1716387046983,-500.0,0.0002941,2]
[327727129,1716387046993,-500.0,0.0002941,2]
[327727130,1716387047003,-500.0,0.0002941,2]